[Event "Titled Tuesday Blitz November 15 Early 2022"]
[White "Yirik, Volkan"]
[Black "Szpar, Milosz"]
[WhiteFideId "6300782"]
[BlackFideId "1184989"]
[WhiteElo "1902"]
[BlackElo "2422"]
[Result "0-1"]
[Round "01"]
[TimeControl "180+1"]
[Date "2022.11.16"]
[WhiteClock "0:01:18"]
[BlackClock "0:01:01"]

1. e4 {[%clk 0:03:00]}  c5 {[%clk 0:02:57]} 2. Nc3 {[%clk 0:03:00]}  Nc6 {[%clk 0:02:52]} 3. Bc4 {[%clk 0:03:01]}  e6 {[%clk 0:02:51]} 4. f4 {[%clk 0:03:00]}  a6 {[%clk 0:02:50]} 5. a4 {[%clk 0:03:00]}  Nge7 {[%clk 0:02:48]} 6. d3 {[%clk 0:03:00]}  d5 {[%clk 0:02:48]} 7. Ba2 {[%clk 0:03:00]}  g6 {[%clk 0:02:47]} 8. Nf3 {[%clk 0:03:00]}  Bg7 {[%clk 0:02:47]} 9. O-O {[%clk 0:03:01]}  O-O {[%clk 0:02:47]} 10. Qe1 {[%clk 0:03:01]}  Nd4 {[%clk 0:02:46]} 11. Nxd4 {[%clk 0:03:01]}  cxd4 {[%clk 0:02:46]} 12. Ne2 {[%clk 0:03:02]}  dxe4 {[%clk 0:02:46]} 13. dxe4 {[%clk 0:03:02]}  d3 {[%clk 0:02:46]} 14. cxd3 {[%clk 0:03:01]}  Qxd3 {[%clk 0:02:47]} 15. Ng3 {[%clk 0:03:01]}  b6 {[%clk 0:02:33]} 16. Qb4 {[%clk 0:02:51]}  Nc6 {[%clk 0:02:31]} 17. Qc4 {[%clk 0:02:46]}  Qxc4 {[%clk 0:02:28]} 18. Bxc4 {[%clk 0:02:43]}  Bb7 {[%clk 0:02:28]} 19. f5 {[%clk 0:02:41]}  Bd4+ {[%clk 0:02:24]} 20. Kh1 {[%clk 0:02:38]}  Ne5 {[%clk 0:02:24]} 21. Ba2 {[%clk 0:02:37]}  exf5 {[%clk 0:02:21]} 22. exf5 {[%clk 0:02:36]}  Ng4 {[%clk 0:02:16]} 23. h3 {[%clk 0:02:31]}  Nf6 {[%clk 0:01:54]} 24. Bh6 {[%clk 0:02:26]}  Rfe8 {[%clk 0:01:50]} 25. fxg6 {[%clk 0:02:25]}  hxg6 {[%clk 0:01:50]} 26. Rad1 {[%clk 0:02:15]}  Be5 {[%clk 0:01:41]} 27. Bg5 {[%clk 0:01:58]}  Bd5 {[%clk 0:01:18]} 28. Rxd5 {[%clk 0:01:34]}  Nxd5 {[%clk 0:01:18]} 29. Bxd5 {[%clk 0:01:33]}  Bxg3 {[%clk 0:01:19]} 30. Bxf7+ {[%clk 0:01:31]}  Kg7 {[%clk 0:01:10]} 31. Bxe8 {[%clk 0:01:29]}  Rxe8 {[%clk 0:01:11]} 32. Bf4 {[%clk 0:01:27]}  Rf8 {[%clk 0:01:09]} 33. Bh6+ {[%clk 0:01:25]}  Kxh6 {[%clk 0:01:06]} 34. Rxf8 {[%clk 0:01:26]}  Be5 {[%clk 0:01:04]} 35. b3 {[%clk 0:01:24]}  Bd4 {[%clk 0:01:04]} 36. g4 {[%clk 0:01:22]}  Kg5 {[%clk 0:01:04]} 37. Kg2 {[%clk 0:01:21]}  Be5 {[%clk 0:01:02]} 38. Ra8 {[%clk 0:01:19]}  a5 {[%clk 0:01:02]} 39. Rf8 {[%clk 0:01:20]}  Bd6 {[%clk 0:01:01]} 40. Kf3 {[%clk 0:01:18]}  Bxf8 {[%clk 0:01:01]} 0-1


[Site "https://www.chess.com"]

[Event "Titled Tuesday Blitz November 15 Early 2022"]
[White "Zanette, Edgard Vinicius"]
[Black "Melikyan, Gnel"]
[WhiteFideId "2109263"]
[BlackFideId "54109990"]
[WhiteElo "2211"]
[BlackElo "2138"]
[Result "0-1"]
[Round "01"]
[TimeControl "180+1"]
[Date "2022.11.16"]
[WhiteClock "0:00:05"]
[BlackClock "0:00:05"]

1. d4 {[%clk 0:03:00]}  Nf6 {[%clk 0:02:56]} 2. Bf4 {[%clk 0:03:00]}  c5 {[%clk 0:02:54]} 3. e3 {[%clk 0:02:59]}  cxd4 {[%clk 0:02:53]} 4. exd4 {[%clk 0:02:58]}  Qb6 {[%clk 0:02:53]} 5. Bc1 {[%clk 0:02:41]}  g6 {[%clk 0:02:52]} 6. Nf3 {[%clk 0:02:37]}  Bg7 {[%clk 0:02:52]} 7. Bd3 {[%clk 0:02:35]}  O-O {[%clk 0:02:51]} 8. O-O {[%clk 0:02:35]}  d6 {[%clk 0:02:49]} 9. h3 {[%clk 0:02:34]}  Nc6 {[%clk 0:02:47]} 10. c3 {[%clk 0:02:33]}  e5 {[%clk 0:02:47]} 11. dxe5 {[%clk 0:02:31]}  dxe5 {[%clk 0:02:47]} 12. Qc2 {[%clk 0:02:18]}  Rd8 {[%clk 0:02:38]} 13. Be3 {[%clk 0:02:13]}  Qc7 {[%clk 0:02:32]} 14. Be2 {[%clk 0:01:40]}  Bf5 {[%clk 0:02:30]} 15. Qa4 {[%clk 0:01:38]}  Nd5 {[%clk 0:02:04]} 16. Bg5 {[%clk 0:01:32]}  f6 {[%clk 0:02:02]} 17. Bc1 {[%clk 0:01:27]}  Kh8 {[%clk 0:01:55]} 18. Na3 {[%clk 0:01:21]}  a6 {[%clk 0:01:55]} 19. Qh4 {[%clk 0:00:31]}  g5 {[%clk 0:01:33]} 20. Qg3 {[%clk 0:00:31]}  Nf4 {[%clk 0:01:23]} 21. Bxf4 {[%clk 0:00:29]}  exf4 {[%clk 0:01:19]} 22. Qh2 {[%clk 0:00:29]}  Ne5 {[%clk 0:01:11]} 23. Nxe5 {[%clk 0:00:28]}  fxe5 {[%clk 0:01:11]} 24. Bg4 {[%clk 0:00:25]}  Bg6 {[%clk 0:01:08]} 25. Rfd1 {[%clk 0:00:24]}  h5 {[%clk 0:01:05]} 26. Be2 {[%clk 0:00:23]}  b5 {[%clk 0:01:00]} 27. Kh1 {[%clk 0:00:20]}  e4 {[%clk 0:00:58]} 28. Qg1 {[%clk 0:00:20]}  Be5 {[%clk 0:00:39]} 29. Rxd8+ {[%clk 0:00:19]}  Rxd8 {[%clk 0:00:40]} 30. Rd1 {[%clk 0:00:19]}  Bf7 {[%clk 0:00:34]} 31. Rxd8+ {[%clk 0:00:18]}  Qxd8 {[%clk 0:00:35]} 32. Qd1 {[%clk 0:00:17]}  Qxd1+ {[%clk 0:00:35]} 33. Bxd1 {[%clk 0:00:18]}  Bxa2 {[%clk 0:00:35]} 34. Bxh5 {[%clk 0:00:18]}  b4 {[%clk 0:00:29]} 35. cxb4 {[%clk 0:00:16]}  Bxb2 {[%clk 0:00:30]} 36. Nc2 {[%clk 0:00:17]}  Bb3 {[%clk 0:00:29]} 37. Bd1 {[%clk 0:00:16]}  Bc3 {[%clk 0:00:28]} 38. Kg1 {[%clk 0:00:16]}  Bc4 {[%clk 0:00:23]} 39. g3 {[%clk 0:00:14]}  Kg7 {[%clk 0:00:20]} 40. gxf4 {[%clk 0:00:14]}  gxf4 {[%clk 0:00:20]} 41. Bg4 {[%clk 0:00:14]}  Bd3 {[%clk 0:00:19]} 42. Bd1 {[%clk 0:00:13]}  Kf6 {[%clk 0:00:18]} 43. Na3 {[%clk 0:00:13]}  Bxb4 {[%clk 0:00:18]} 44. Nc2 {[%clk 0:00:13]}  Bc5 {[%clk 0:00:17]} 45. Kg2 {[%clk 0:00:14]}  a5 {[%clk 0:00:17]} 46. Na1 {[%clk 0:00:14]}  Bb6 {[%clk 0:00:08]} 47. Ba4 {[%clk 0:00:15]}  Ke5 {[%clk 0:00:05]} 48. Nb3 {[%clk 0:00:15]}  Bc2 {[%clk 0:00:06]} 49. h4 {[%clk 0:00:13]}  Bd3 {[%clk 0:00:04]} 50. Nc1 {[%clk 0:00:13]}  Bc4 {[%clk 0:00:04]} 51. Nb3 {[%clk 0:00:12]}  Bd8 {[%clk 0:00:04]} 52. h5 {[%clk 0:00:12]}  Bg5 {[%clk 0:00:05]} 53. Nxa5 {[%clk 0:00:12]}  Be2 {[%clk 0:00:05]} 54. Nc6+ {[%clk 0:00:12]}  Kf6 {[%clk 0:00:05]} 55. Nd4 {[%clk 0:00:12]}  Bxh5 {[%clk 0:00:05]} 56. Bc6 {[%clk 0:00:12]}  Bg6 {[%clk 0:00:05]} 57. f3 {[%clk 0:00:12]}  e3 {[%clk 0:00:05]} 58. Ne2 {[%clk 0:00:12]}  Bd3 {[%clk 0:00:06]} 59. Kf1 {[%clk 0:00:11]}  Ke5 {[%clk 0:00:06]} 60. Bd5 {[%clk 0:00:09]}  Bh4 {[%clk 0:00:07]} 61. Bb7 {[%clk 0:00:09]}  Bf2 {[%clk 0:00:07]} 62. Ba8 {[%clk 0:00:09]}  Kf5 {[%clk 0:00:08]} 63. Bb7 {[%clk 0:00:09]}  Ke5 {[%clk 0:00:07]} 64. Ba8 {[%clk 0:00:09]}  Kd6 {[%clk 0:00:08]} 65. Bb7 {[%clk 0:00:09]}  Kc5 {[%clk 0:00:09]} 66. Be4 {[%clk 0:00:07]}  Bxe4 {[%clk 0:00:06]} 67. fxe4 {[%clk 0:00:08]}  f3 {[%clk 0:00:07]} 68. Nf4 {[%clk 0:00:08]}  Kd4 {[%clk 0:00:05]} 69. e5 {[%clk 0:00:07]}  Bg3 {[%clk 0:00:05]} 70. Nh3 {[%clk 0:00:05]}  e2+ {[%clk 0:00:05]} 71. Kg1 {[%clk 0:00:05]}  e1=Q# {[%clk 0:00:05]} 0-1


[Site "https://www.chess.com"]

[Event "Titled Tuesday Blitz November 15 Early 2022"]
[White "Zilleruelo Irizarry, Diego"]
[Black "Kryakvin, Dmitry"]
[WhiteFideId "3101460"]
[BlackFideId "4153278"]
[WhiteElo "1998"]
[BlackElo "2414"]
[Result "0-1"]
[Round "01"]
[TimeControl "180+1"]
[Date "2022.11.16"]
[WhiteClock "0:00:16"]
[BlackClock "0:00:12"]

1. e4 {[%clk 0:03:00]}  c5 {[%clk 0:02:58]} 2. Nf3 {[%clk 0:03:00]}  d6 {[%clk 0:02:58]} 3. d4 {[%clk 0:03:00]}  cxd4 {[%clk 0:02:58]} 4. Qxd4 {[%clk 0:03:00]}  Nc6 {[%clk 0:02:57]} 5. Qe3 {[%clk 0:03:00]}  Nf6 {[%clk 0:02:54]} 6. Be2 {[%clk 0:03:00]}  Bg4 {[%clk 0:02:53]} 7. O-O {[%clk 0:02:59]}  g6 {[%clk 0:02:50]} 8. Rd1 {[%clk 0:02:57]}  Bg7 {[%clk 0:02:48]} 9. e5 {[%clk 0:02:46]}  Nd7 {[%clk 0:02:27]} 10. exd6 {[%clk 0:02:41]}  O-O {[%clk 0:02:26]} 11. dxe7 {[%clk 0:02:38]}  Nxe7 {[%clk 0:02:24]} 12. h3 {[%clk 0:01:54]}  Bf5 {[%clk 0:02:21]} 13. c3 {[%clk 0:01:54]}  Re8 {[%clk 0:02:14]} 14. Qf4 {[%clk 0:01:50]}  Nd5 {[%clk 0:01:58]} 15. Qd2 {[%clk 0:01:03]}  N5f6 {[%clk 0:01:22]} 16. Bb5 {[%clk 0:00:55]}  a6 {[%clk 0:01:15]} 17. Bf1 {[%clk 0:00:51]}  Qb6 {[%clk 0:01:04]} 18. Nd4 {[%clk 0:00:46]}  Be4 {[%clk 0:01:00]} 19. Na3 {[%clk 0:00:46]}  Nc5 {[%clk 0:00:52]} 20. Nc4 {[%clk 0:00:42]}  Qc7 {[%clk 0:00:49]} 21. Qf4 {[%clk 0:00:39]}  Qxf4 {[%clk 0:00:45]} 22. Bxf4 {[%clk 0:00:40]}  Nd5 {[%clk 0:00:45]} 23. Bg3 {[%clk 0:00:39]}  Na4 {[%clk 0:00:23]} 24. Nd6 {[%clk 0:00:37]}  Nxb2 {[%clk 0:00:19]} 25. Rd2 {[%clk 0:00:25]}  Nxc3 {[%clk 0:00:19]} 26. Nxe8 {[%clk 0:00:21]}  Rxe8 {[%clk 0:00:20]} 27. Re1 {[%clk 0:00:17]}  Nba4 {[%clk 0:00:14]} 28. Nb3 {[%clk 0:00:17]}  Bc6 {[%clk 0:00:13]} 29. Rd6 {[%clk 0:00:16]}  Rxe1 {[%clk 0:00:12]} 30. Kh2 {[%clk 0:00:16]} 0-1


[Site "https://www.chess.com"]

[Event "Titled Tuesday Blitz November 15 Early 2022"]
[White "Zivkovic, Nemanja"]
[Black "Zaichenko, Daria"]
[WhiteFideId "942154"]
[BlackFideId "4197453"]
[WhiteElo "2372"]
[BlackElo "2039"]
[Result "1-0"]
[Round "01"]
[TimeControl "180+1"]
[Date "2022.11.16"]
[WhiteClock "0:01:52"]
[BlackClock "0:00:50"]

1. e4 {[%clk 0:02:55]}  c5 {[%clk 0:02:58]} 2. Nf3 {[%clk 0:02:55]}  Nc6 {[%clk 0:02:57]} 3. Bb5 {[%clk 0:02:54]}  g6 {[%clk 0:02:36]} 4. c3 {[%clk 0:02:54]}  Bg7 {[%clk 0:02:35]} 5. O-O {[%clk 0:02:54]}  e5 {[%clk 0:02:31]} 6. Re1 {[%clk 0:02:53]}  Nge7 {[%clk 0:02:31]} 7. Na3 {[%clk 0:02:51]}  O-O {[%clk 0:02:26]} 8. Nc2 {[%clk 0:02:48]}  a6 {[%clk 0:02:24]} 9. Bxc6 {[%clk 0:02:44]}  Nxc6 {[%clk 0:02:10]} 10. d4 {[%clk 0:02:44]}  cxd4 {[%clk 0:02:10]} 11. cxd4 {[%clk 0:02:45]}  exd4 {[%clk 0:02:07]} 12. Ncxd4 {[%clk 0:02:43]}  Nxd4 {[%clk 0:02:08]} 13. Nxd4 {[%clk 0:02:43]}  d5 {[%clk 0:02:06]} 14. e5 {[%clk 0:02:42]}  Be6 {[%clk 0:02:00]} 15. f4 {[%clk 0:02:30]}  Qb6 {[%clk 0:01:57]} 16. Re2 {[%clk 0:02:17]}  Bg4 {[%clk 0:01:50]} 17. Be3 {[%clk 0:02:14]}  Bxe2 {[%clk 0:01:41]} 18. Qxe2 {[%clk 0:02:15]}  Qa5 {[%clk 0:01:34]} 19. a3 {[%clk 0:02:12]}  Rac8 {[%clk 0:01:33]} 20. h4 {[%clk 0:02:09]}  Rc4 {[%clk 0:01:28]} 21. Rd1 {[%clk 0:02:09]}  Rfc8 {[%clk 0:01:25]} 22. h5 {[%clk 0:02:08]}  Qa4 {[%clk 0:01:13]} 23. hxg6 {[%clk 0:02:03]}  R4c7 {[%clk 0:00:57]} 24. gxf7+ {[%clk 0:02:00]}  Rxf7 {[%clk 0:00:56]} 25. Qg4 {[%clk 0:01:53]}  Kh8 {[%clk 0:00:50]} 26. Qxc8+ {[%clk 0:01:52]} 1-0


[Site "https://www.chess.com"]

[Event "Titled Tuesday Blitz November 15 Early 2022"]
[White "parintele_chess"]
[Black "Suder, Jakub"]
[BlackFideId "1195310"]
[WhiteElo "2228"]
[BlackElo "2243"]
[Result "0-1"]
[Round "01"]
[TimeControl "180+1"]
[Date "2022.11.16"]
[WhiteClock "0:01:17"]
[BlackClock "0:02:03"]

1. d4 {[%clk 0:02:57]}  d5 {[%clk 0:02:59]} 2. Bf4 {[%clk 0:02:57]}  Nf6 {[%clk 0:02:59]} 3. Nf3 {[%clk 0:02:57]}  c5 {[%clk 0:02:59]} 4. e3 {[%clk 0:02:57]}  Nc6 {[%clk 0:02:59]} 5. Nbd2 {[%clk 0:02:57]}  Bg4 {[%clk 0:02:59]} 6. c3 {[%clk 0:02:55]}  cxd4 {[%clk 0:02:59]} 7. exd4 {[%clk 0:02:55]}  e6 {[%clk 0:02:59]} 8. Be2 {[%clk 0:02:51]}  Bd6 {[%clk 0:02:59]} 9. Ne5 {[%clk 0:02:45]}  Bxe2 {[%clk 0:02:58]} 10. Qxe2 {[%clk 0:02:46]}  Qc7 {[%clk 0:02:59]} 11. Ndf3 {[%clk 0:02:42]}  O-O {[%clk 0:02:56]} 12. Bg5 {[%clk 0:02:29]}  Ne4 {[%clk 0:02:52]} 13. Bh4 {[%clk 0:02:18]}  Nxe5 {[%clk 0:02:42]} 14. dxe5 {[%clk 0:02:13]}  Bxe5 {[%clk 0:02:29]} 15. Nxe5 {[%clk 0:02:10]}  Qxe5 {[%clk 0:02:29]} 16. Bg3 {[%clk 0:02:10]}  Qf5 {[%clk 0:02:24]} 17. O-O {[%clk 0:02:05]}  a6 {[%clk 0:02:23]} 18. f3 {[%clk 0:01:57]}  Nxg3 {[%clk 0:02:22]} 19. hxg3 {[%clk 0:01:58]}  Rac8 {[%clk 0:02:22]} 20. g4 {[%clk 0:01:54]}  Qf4 {[%clk 0:02:21]} 21. Rad1 {[%clk 0:01:54]}  Qc4 {[%clk 0:02:17]} 22. Qc2 {[%clk 0:01:34]}  Qxa2 {[%clk 0:02:13]} 23. Kf2 {[%clk 0:01:22]}  Qc4 {[%clk 0:02:06]} 24. Rh1 {[%clk 0:01:21]}  g6 {[%clk 0:02:05]} 25. Rd4 {[%clk 0:01:17]}  Qxd4+ {[%clk 0:02:03]} 0-1


[Site "https://www.chess.com"]

[Event "Titled Tuesday Blitz November 15 Early 2022"]
[White "Aaditya Dhingra"]
[Black "Ozen, Bahadir"]
[WhiteFideId "25678191"]
[BlackFideId "6337058"]
[WhiteElo "2054"]
[BlackElo "2503"]
[Result "0-1"]
[Round "02"]
[TimeControl "180+1"]
[Date "2022.11.16"]
[WhiteClock "0:00:02"]
[BlackClock "0:00:03"]

1. d4 {[%clk 0:03:00]}  g6 {[%clk 0:02:59]} 2. Nc3 {[%clk 0:02:58]}  Bg7 {[%clk 0:02:59]} 3. e4 {[%clk 0:02:57]}  c6 {[%clk 0:02:58]} 4. Nf3 {[%clk 0:02:56]}  d6 {[%clk 0:02:58]} 5. h3 {[%clk 0:02:56]}  Nf6 {[%clk 0:02:54]} 6. Bf4 {[%clk 0:02:53]}  O-O {[%clk 0:02:54]} 7. Be2 {[%clk 0:02:51]}  b5 {[%clk 0:02:34]} 8. a3 {[%clk 0:02:50]}  Nbd7 {[%clk 0:02:28]} 9. O-O {[%clk 0:02:44]}  a6 {[%clk 0:02:25]} 10. e5 {[%clk 0:02:40]}  Ne8 {[%clk 0:02:25]} 11. Ne4 {[%clk 0:02:28]}  Nb6 {[%clk 0:02:16]} 12. Bg3 {[%clk 0:02:24]}  Bf5 {[%clk 0:02:15]} 13. Bd3 {[%clk 0:02:22]}  Rc8 {[%clk 0:02:05]} 14. Qe2 {[%clk 0:02:16]}  Qd7 {[%clk 0:01:42]} 15. Rad1 {[%clk 0:02:11]}  Na4 {[%clk 0:01:40]} 16. c3 {[%clk 0:01:59]}  f6 {[%clk 0:01:07]} 17. exd6 {[%clk 0:01:44]}  exd6 {[%clk 0:01:06]} 18. Rfe1 {[%clk 0:01:27]}  Rf7 {[%clk 0:01:02]} 19. Qc2 {[%clk 0:01:20]}  Bxe4 {[%clk 0:00:59]} 20. Bxe4 {[%clk 0:01:19]}  d5 {[%clk 0:01:00]} 21. Bd3 {[%clk 0:01:18]}  Nd6 {[%clk 0:01:00]} 22. b3 {[%clk 0:01:13]}  Nb6 {[%clk 0:01:00]} 23. Re2 {[%clk 0:01:10]}  Bf8 {[%clk 0:00:58]} 24. Rde1 {[%clk 0:01:09]}  Re8 {[%clk 0:00:48]} 25. Rxe8 {[%clk 0:00:56]}  Nxe8 {[%clk 0:00:49]} 26. a4 {[%clk 0:00:56]}  Ng7 {[%clk 0:00:42]} 27. axb5 {[%clk 0:00:53]}  axb5 {[%clk 0:00:43]} 28. Ra1 {[%clk 0:00:41]}  Bd6 {[%clk 0:00:43]} 29. Bxd6 {[%clk 0:00:36]}  Qxd6 {[%clk 0:00:44]} 30. Ra6 {[%clk 0:00:36]}  Qc7 {[%clk 0:00:43]} 31. Qa2 {[%clk 0:00:33]}  Re7 {[%clk 0:00:40]} 32. g3 {[%clk 0:00:32]}  Kf7 {[%clk 0:00:39]} 33. Qa5 {[%clk 0:00:31]}  Nc8 {[%clk 0:00:39]} 34. Qxc7 {[%clk 0:00:28]}  Rxc7 {[%clk 0:00:40]} 35. Nd2 {[%clk 0:00:28]}  Nd6 {[%clk 0:00:35]} 36. Kg2 {[%clk 0:00:27]}  Ke7 {[%clk 0:00:36]} 37. Nb1 {[%clk 0:00:23]}  Ne6 {[%clk 0:00:31]} 38. Na3 {[%clk 0:00:23]}  b4 {[%clk 0:00:31]} 39. cxb4 {[%clk 0:00:21]}  Nxd4 {[%clk 0:00:31]} 40. Nc2 {[%clk 0:00:19]}  Nxc2 {[%clk 0:00:30]} 41. Bxc2 {[%clk 0:00:20]}  Kd7 {[%clk 0:00:31]} 42. Bd3 {[%clk 0:00:19]}  Rb7 {[%clk 0:00:31]} 43. Ra4 {[%clk 0:00:16]}  f5 {[%clk 0:00:31]} 44. Kf3 {[%clk 0:00:15]}  Ke6 {[%clk 0:00:31]} 45. Ke3 {[%clk 0:00:15]}  Rb6 {[%clk 0:00:24]} 46. Kd4 {[%clk 0:00:14]}  Nb7 {[%clk 0:00:18]} 47. Ra6 {[%clk 0:00:11]}  Rxa6 {[%clk 0:00:09]} 48. Bxa6 {[%clk 0:00:12]}  Nd6 {[%clk 0:00:06]} 49. Kc5 {[%clk 0:00:12]}  Kd7 {[%clk 0:00:07]} 50. f3 {[%clk 0:00:09]}  Kc7 {[%clk 0:00:07]} 51. b5 {[%clk 0:00:09]}  cxb5 {[%clk 0:00:08]} 52. Kxd5 {[%clk 0:00:07]}  Nf7 {[%clk 0:00:07]} 53. Bxb5 {[%clk 0:00:06]}  Ng5 {[%clk 0:00:08]} 54. f4 {[%clk 0:00:06]}  Nxh3 {[%clk 0:00:08]} 55. Be8 {[%clk 0:00:03]}  Nf2 {[%clk 0:00:08]} 56. Bf7 {[%clk 0:00:04]}  Ne4 {[%clk 0:00:08]} 57. Bg8 {[%clk 0:00:04]}  Nf6+ {[%clk 0:00:08]} 58. Ke6 {[%clk 0:00:04]}  Nxg8 {[%clk 0:00:09]} 59. Kf7 {[%clk 0:00:04]}  h5 {[%clk 0:00:03]} 60. Kxg8 {[%clk 0:00:03]}  g5 {[%clk 0:00:03]} 61. fxg5 {[%clk 0:00:03]}  f4 {[%clk 0:00:03]} 62. gxf4 {[%clk 0:00:03]}  h4 {[%clk 0:00:03]} 63. f5 {[%clk 0:00:03]}  h3 {[%clk 0:00:04]} 64. f6 {[%clk 0:00:03]}  h2 {[%clk 0:00:05]} 65. f7 {[%clk 0:00:03]}  h1=Q {[%clk 0:00:06]} 66. f8=Q {[%clk 0:00:03]}  Qg2 {[%clk 0:00:02]} 67. Qf7+ {[%clk 0:00:03]}  Kb8 {[%clk 0:00:03]} 68. g6 {[%clk 0:00:04]}  Ka8 {[%clk 0:00:02]} 69. g7 {[%clk 0:00:03]}  Qh2 {[%clk 0:00:02]} 70. Kf8 {[%clk 0:00:03]}  Qd6+ {[%clk 0:00:01]} 71. Qe7 {[%clk 0:00:03]}  Qf4+ {[%clk 0:00:02]} 72. Ke8 {[%clk 0:00:03]}  Qg4 {[%clk 0:00:02]} 73. Qd7 {[%clk 0:00:02]}  Qe4+ {[%clk 0:00:02]} 74. Kf8 {[%clk 0:00:02]}  Qf4+ {[%clk 0:00:02]} 75. Qf7 {[%clk 0:00:02]}  Qd6+ {[%clk 0:00:02]} 76. Qe7 {[%clk 0:00:02]}  Qf4+ {[%clk 0:00:02]} 77. Ke8 {[%clk 0:00:02]}  Qg4 {[%clk 0:00:02]} 78. Qd7 {[%clk 0:00:03]}  Qe4+ {[%clk 0:00:01]} 79. Kd8 {[%clk 0:00:03]}  Qh4+ {[%clk 0:00:02]} 80. Kc8 {[%clk 0:00:03]}  Qh1 {[%clk 0:00:01]} 81. Qc6+ {[%clk 0:00:03]}  Qxc6+ {[%clk 0:00:01]} 82. Kd8 {[%clk 0:00:03]}  Qg6 {[%clk 0:00:02]} 83. Ke7 {[%clk 0:00:03]}  Qxg7+ {[%clk 0:00:02]} 84. Kd6 {[%clk 0:00:03]}  Qc3 {[%clk 0:00:02]} 85. Ke6 {[%clk 0:00:02]}  Qb4 {[%clk 0:00:03]} 0-1


[Site "https://www.chess.com"]

[Event "Titled Tuesday Blitz November 15 Early 2022"]
[White "Abdusattorov, Nodirbek"]
[Black "Jarmula, Lukasz"]
[WhiteFideId "14204118"]
[BlackFideId "1160664"]
[WhiteElo "2665"]
[BlackElo "2357"]
[Result "1-0"]
[Round "02"]
[TimeControl "180+1"]
[Date "2022.11.15"]
[WhiteClock "0:00:04"]
[BlackClock "0:00:07"]

1. a3 {[%clk 0:03:00]}  e5 {[%clk 0:02:57]} 2. e4 {[%clk 0:03:00]}  Nf6 {[%clk 0:02:57]} 3. Nc3 {[%clk 0:03:00]}  Nc6 {[%clk 0:02:54]} 4. d3 {[%clk 0:02:45]}  d5 {[%clk 0:02:52]} 5. exd5 {[%clk 0:02:45]}  Nxd5 {[%clk 0:02:52]} 6. Nf3 {[%clk 0:02:45]}  Be7 {[%clk 0:02:50]} 7. Be2 {[%clk 0:02:44]}  O-O {[%clk 0:02:50]} 8. O-O {[%clk 0:02:45]}  Be6 {[%clk 0:02:50]} 9. Re1 {[%clk 0:02:43]}  Qd7 {[%clk 0:02:47]} 10. Bf1 {[%clk 0:02:39]}  f6 {[%clk 0:02:39]} 11. Ne4 {[%clk 0:02:37]}  Bg4 {[%clk 0:02:35]} 12. h3 {[%clk 0:02:36]}  Be6 {[%clk 0:02:28]} 13. b4 {[%clk 0:02:30]}  a6 {[%clk 0:02:20]} 14. Bd2 {[%clk 0:02:29]}  Rad8 {[%clk 0:02:16]} 15. Rb1 {[%clk 0:02:25]}  Qc8 {[%clk 0:02:08]} 16. Ng3 {[%clk 0:02:19]}  Nb6 {[%clk 0:02:03]} 17. c3 {[%clk 0:02:15]}  Kh8 {[%clk 0:01:59]} 18. a4 {[%clk 0:02:11]}  Bf7 {[%clk 0:01:51]} 19. b5 {[%clk 0:02:10]}  Nb8 {[%clk 0:01:43]} 20. d4 {[%clk 0:02:10]}  exd4 {[%clk 0:01:32]} 21. Nxd4 {[%clk 0:01:50]}  Bc5 {[%clk 0:01:31]} 22. Ngf5 {[%clk 0:01:37]}  Bg6 {[%clk 0:01:27]} 23. Nxg7 {[%clk 0:00:59]}  Bxb1 {[%clk 0:01:24]} 24. Qxb1 {[%clk 0:00:59]}  Bxd4 {[%clk 0:01:19]} 25. Bh6 {[%clk 0:00:58]}  Be5 {[%clk 0:01:01]} 26. Nf5 {[%clk 0:00:54]}  Rf7 {[%clk 0:00:58]} 27. Qb3 {[%clk 0:00:49]}  Qxf5 {[%clk 0:00:51]} 28. Qxf7 {[%clk 0:00:49]}  Qg6 {[%clk 0:00:51]} 29. Qe7 {[%clk 0:00:45]}  Re8 {[%clk 0:00:44]} 30. Qc5 {[%clk 0:00:30]}  Qxh6 {[%clk 0:00:37]} 31. Re3 {[%clk 0:00:25]}  N8d7 {[%clk 0:00:35]} 32. Qa3 {[%clk 0:00:19]}  Rg8 {[%clk 0:00:34]} 33. bxa6 {[%clk 0:00:17]}  bxa6 {[%clk 0:00:33]} 34. Qb3 {[%clk 0:00:18]}  Qg7 {[%clk 0:00:25]} 35. a5 {[%clk 0:00:17]}  Nc8 {[%clk 0:00:24]} 36. Qc4 {[%clk 0:00:16]}  Nd6 {[%clk 0:00:23]} 37. Qxa6 {[%clk 0:00:17]}  Nf5 {[%clk 0:00:21]} 38. Re4 {[%clk 0:00:15]}  Nc5 {[%clk 0:00:20]} 39. Qc4 {[%clk 0:00:15]}  Nxe4 {[%clk 0:00:19]} 40. Qxe4 {[%clk 0:00:16]}  Nd6 {[%clk 0:00:20]} 41. Qc6 {[%clk 0:00:16]}  f5 {[%clk 0:00:17]} 42. a6 {[%clk 0:00:16]}  Bxc3 {[%clk 0:00:17]} 43. a7 {[%clk 0:00:17]}  Qf8 {[%clk 0:00:14]} 44. Qxc3+ {[%clk 0:00:16]}  Rg7 {[%clk 0:00:12]} 45. Qc6 {[%clk 0:00:14]}  Rg8 {[%clk 0:00:12]} 46. Qc3+ {[%clk 0:00:15]}  Rg7 {[%clk 0:00:11]} 47. Be2 {[%clk 0:00:13]}  Qa8 {[%clk 0:00:10]} 48. Qa1 {[%clk 0:00:13]}  Kg8 {[%clk 0:00:10]} 49. Bf3 {[%clk 0:00:11]}  Ne4 {[%clk 0:00:10]} 50. Qa2+ {[%clk 0:00:10]}  Kh8 {[%clk 0:00:09]} 51. Qa1 {[%clk 0:00:10]}  Kg8 {[%clk 0:00:09]} 52. Be2 {[%clk 0:00:10]}  c6 {[%clk 0:00:08]} 53. Bc4+ {[%clk 0:00:10]}  Kh8 {[%clk 0:00:08]} 54. Qe5 {[%clk 0:00:05]}  h6 {[%clk 0:00:07]} 55. Qb8+ {[%clk 0:00:06]}  Rg8 {[%clk 0:00:07]} 56. Bxg8 {[%clk 0:00:04]} 1-0


[Site "https://www.chess.com"]

[Event "Titled Tuesday Blitz November 15 Early 2022"]
[White "Abhishek, Das"]
[Black "Schmakel, Sam"]
[WhiteFideId "5013348"]
[BlackFideId "2039311"]
[WhiteElo "2230"]
[BlackElo "2356"]
[Result "0-1"]
[Round "02"]
[TimeControl "180+1"]
[Date "2022.11.16"]
[WhiteClock "0:00:18"]
[BlackClock "0:00:28"]

1. e4 {[%clk 0:03:00]}  c5 {[%clk 0:02:57]} 2. Nc3 {[%clk 0:03:00]}  d6 {[%clk 0:02:55]} 3. Nf3 {[%clk 0:02:59]}  Nc6 {[%clk 0:02:50]} 4. d4 {[%clk 0:02:57]}  cxd4 {[%clk 0:02:50]} 5. Nxd4 {[%clk 0:02:58]}  a6 {[%clk 0:02:47]} 6. a4 {[%clk 0:02:42]}  g6 {[%clk 0:02:40]} 7. Be2 {[%clk 0:02:40]}  Bg7 {[%clk 0:02:40]} 8. Be3 {[%clk 0:02:40]}  Nf6 {[%clk 0:02:40]} 9. O-O {[%clk 0:02:39]}  O-O {[%clk 0:02:40]} 10. Nb3 {[%clk 0:02:38]}  Be6 {[%clk 0:02:31]} 11. f4 {[%clk 0:02:37]}  Rc8 {[%clk 0:02:24]} 12. f5 {[%clk 0:02:30]}  Bd7 {[%clk 0:02:19]} 13. a5 {[%clk 0:02:29]}  Ne5 {[%clk 0:02:13]} 14. Bb6 {[%clk 0:02:24]}  Qe8 {[%clk 0:02:14]} 15. Nd2 {[%clk 0:01:48]}  Bc6 {[%clk 0:01:58]} 16. Be3 {[%clk 0:01:40]}  Nfd7 {[%clk 0:01:55]} 17. Nb3 {[%clk 0:01:33]}  Nf6 {[%clk 0:01:45]} 18. fxg6 {[%clk 0:01:14]}  hxg6 {[%clk 0:01:43]} 19. Nd2 {[%clk 0:01:06]}  d5 {[%clk 0:01:41]} 20. exd5 {[%clk 0:01:04]}  Nxd5 {[%clk 0:01:42]} 21. Nxd5 {[%clk 0:01:04]}  Bxd5 {[%clk 0:01:43]} 22. Nf3 {[%clk 0:00:56]}  Nxf3+ {[%clk 0:01:22]} 23. Bxf3 {[%clk 0:00:55]}  Bxf3 {[%clk 0:01:23]} 24. Rxf3 {[%clk 0:00:51]}  Qb5 {[%clk 0:00:58]} 25. Qf1 {[%clk 0:00:28]}  Qxf1+ {[%clk 0:00:52]} 26. Rfxf1 {[%clk 0:00:26]}  Rxc2 {[%clk 0:00:50]} 27. Rab1 {[%clk 0:00:26]}  Rd8 {[%clk 0:00:40]} 28. Rf2 {[%clk 0:00:23]}  Rdc8 {[%clk 0:00:35]} 29. b4 {[%clk 0:00:20]}  R2c3 {[%clk 0:00:29]} 30. Bd4 {[%clk 0:00:18]}  Bxd4 {[%clk 0:00:28]} 0-1


[Site "https://www.chess.com"]